[Event "*** SCC Grand Prix: Titled Tuesday Blitz"]
[Site "Chess.com"]
[Date "2020.09.29"]
[Round "2"]
[White "biostatistician"]
[Black "northridgehawk"]
[Result "1-0"]
[WhiteElo "2567"]
[BlackElo "2324"]
[TimeControl "180+1"]
[EndTime "10:15:08 PDT"]
[Termination "biostatistician won by resignation"]

1. d4 {[%clk 0:02:59.6]} 1... Nf6 {[%clk 0:02:56.2]} 2. Nf3 {[%clk 0:02:58.1]}
2... g6 {[%clk 0:02:55]} 3. c4 {[%clk 0:02:58.4]} 3... Bg7 {[%clk 0:02:53.5]} 4.
Nc3 {[%clk 0:02:58.7]} 4... d5 {[%clk 0:02:53.9]} 5. cxd5 {[%clk 0:02:58.3]}
5... Nxd5 {[%clk 0:02:54.8]} 6. e4 {[%clk 0:02:58.4]} 6... Nxc3 {[%clk 0:02:55]}
7. bxc3 {[%clk 0:02:59]} 7... c5 {[%clk 0:02:55.9]} 8. Be3 {[%clk 0:02:58.9]}
8... O-O {[%clk 0:02:56.8]} 9. Rc1 {[%clk 0:02:58]} 9... Bg4 {[%clk 0:02:52.3]}
10. Be2 {[%clk 0:02:55.9]} 10... cxd4 {[%clk 0:02:48.4]} 11. cxd4 {[%clk
0:02:56.1]} 11... Qa5+ {[%clk 0:02:48.5]} 12. Qd2 {[%clk 0:02:51.2]} 12... Qxd2+
{[%clk 0:02:47.3]} 13. Nxd2 {[%clk 0:02:51.1]} 13... Bxe2 {[%clk 0:02:47.3]} 14.
Kxe2 {[%clk 0:02:51.6]} 14... Rd8 {[%clk 0:02:45.3]} 15. Nb3 {[%clk 0:02:50.5]}
15... Nc6 {[%clk 0:02:43.8]} 16. d5 {[%clk 0:02:49.2]} 16... Ne5 {[%clk
0:02:37.6]} 17. Rc7 {[%clk 0:02:45.6]} 17... Rd7 {[%clk 0:02:37.5]} 18. Rhc1
{[%clk 0:02:45.7]} 18... Rad8 {[%clk 0:02:37.4]} 19. Bxa7 {[%clk 0:02:45.4]}
19... e6 {[%clk 0:02:26.6]} 20. Rxd7 {[%clk 0:02:36.4]} 20... Nxd7 {[%clk
0:02:22.3]} 21. dxe6 {[%clk 0:02:22.8]} 21... fxe6 {[%clk 0:02:21.8]} 22. Rc7
{[%clk 0:02:22.3]} 22... Ne5 {[%clk 0:02:21.4]} 23. Rxb7 {[%clk 0:02:19.7]}
23... Nd3 {[%clk 0:02:20.8]} 24. g3 {[%clk 0:02:15.7]} 24... Nb2 {[%clk
0:02:09.5]} 25. Rb8 {[%clk 0:02:14.8]} 25... Rxb8 {[%clk 0:02:07]} 26. Bxb8
{[%clk 0:02:14.5]} 26... Na4 {[%clk 0:02:07.4]} 27. Kd3 {[%clk 0:02:10.3]} 27...
Kf7 {[%clk 0:02:05.4]} 28. f4 {[%clk 0:02:08.6]} 28... Ke7 {[%clk 0:02:05.1]}
29. e5 {[%clk 0:02:07.3]} 29... Kd7 {[%clk 0:02:05.1]} 30. Bd6 {[%clk
0:02:05.9]} 30... Kc6 {[%clk 0:02:04.8]} 31. h4 {[%clk 0:02:03.1]} 31... h6
{[%clk 0:02:02.7]} 32. g4 {[%clk 0:02:00.8]} 32... Kd5 {[%clk 0:01:59.6]} 33. g5
{[%clk 0:01:59.9]} 33... hxg5 {[%clk 0:01:58.4]} 34. hxg5 {[%clk 0:01:59.9]}
34... Nb2+ {[%clk 0:01:56.7]} 35. Ke3 {[%clk 0:01:55.2]} 35... Nc4+ {[%clk
0:01:57.6]} 36. Kf3 {[%clk 0:01:55.1]} 36... Nxd6 {[%clk 0:01:57.4]} 37. exd6
{[%clk 0:01:55]} 37... Kxd6 {[%clk 0:01:58.3]} 38. Ke4 {[%clk 0:01:55.5]} 38...
Bc3 {[%clk 0:01:56.4]} 39. Nd4 {[%clk 0:01:52.9]} 39... Ba5 {[%clk 0:01:47.2]}
40. Nf3 {[%clk 0:01:50.8]} 40... Bc3 {[%clk 0:01:40.6]} 41. Nh4 {[%clk
0:01:48.5]} 41... e5 {[%clk 0:01:38.8]} 42. fxe5+ {[%clk 0:01:42.8]} 42... Bxe5
{[%clk 0:01:39.7]} 43. Nxg6 {[%clk 0:01:43.6]} 43... Bb2 {[%clk 0:01:37.4]} 44.
Kf5 {[%clk 0:01:40.3]} 44... Ba3 {[%clk 0:01:35.2]} 45. Ne5 {[%clk 0:01:36.8]}
45... Kd5 {[%clk 0:01:31.9]} 46. g6 {[%clk 0:01:31.8]} 46... Bb2 {[%clk
0:01:30.9]} 47. g7 {[%clk 0:01:31.4]} 1-0

[Event "*** SCC Grand Prix: Titled Tuesday Blitz"]
[Site "Chess.com"]
[Date "2020.09.29"]
[Round "2"]
[White "SARGISMV"]
[Black "JonahWillow"]
[Result "0-1"]
[WhiteElo "2493"]
[BlackElo "2760"]
[TimeControl "180+1"]
[EndTime "10:15:09 PDT"]
[Termination "JonahWillow won by resignation"]

1. d4 {[%clk 0:03:00.9]} 1... Nf6 {[%clk 0:02:59.5]} 2. Nf3 {[%clk 0:03:01.3]}
2... e6 {[%clk 0:02:59.5]} 3. c4 {[%clk 0:03:00.9]} 3... c5 {[%clk 0:02:59.5]}
4. d5 {[%clk 0:03:00.4]} 4... exd5 {[%clk 0:03:00.4]} 5. cxd5 {[%clk 0:03:01.1]}
5... d6 {[%clk 0:03:01.1]} 6. Nc3 {[%clk 0:03:01.4]} 6... g6 {[%clk 0:03:01.5]}
7. Bg5 {[%clk 0:03:01.1]} 7... Bg7 {[%clk 0:03:00.7]} 8. Qd2 {[%clk 0:02:59.4]}
8... h6 {[%clk 0:02:57.4]} 9. Bf4 {[%clk 0:02:58.6]} 9... Nh5 {[%clk 0:02:49.7]}
10. Be3 {[%clk 0:02:57.4]} 10... a6 {[%clk 0:02:49]} 11. a4 {[%clk 0:02:56.5]}
11... Nd7 {[%clk 0:02:49.3]} 12. g3 {[%clk 0:02:55.7]} 12... Rb8 {[%clk
0:02:40.4]} 13. Bg2 {[%clk 0:02:54.2]} 13... b5 {[%clk 0:02:28.1]} 14. axb5
{[%clk 0:02:53.3]} 14... axb5 {[%clk 0:02:29]} 15. O-O {[%clk 0:02:52.3]} 15...
b4 {[%clk 0:02:20.1]} 16. Ne4 {[%clk 0:02:46.4]} 16... Ndf6 {[%clk 0:02:17.6]}
17. Nxf6+ {[%clk 0:02:45.9]} 17... Nxf6 {[%clk 0:02:18.3]} 18. Bf4 {[%clk
0:02:44.3]} 18... g5 {[%clk 0:02:15.7]} 19. Be3 {[%clk 0:02:43.1]} 19... O-O
{[%clk 0:02:15.8]} 20. Rfe1 {[%clk 0:02:42.2]} 20... Bb7 {[%clk 0:02:12.5]} 21.
h4 {[%clk 0:02:39.6]} 21... Nxd5 {[%clk 0:01:19.1]} 22. hxg5 {[%clk 0:02:36.2]}
22... Nxe3 {[%clk 0:01:19.3]} 23. Qxe3 {[%clk 0:02:34.1]} 23... hxg5 {[%clk
0:01:12.3]} 24. Nxg5 {[%clk 0:02:16.7]} 24... Bxb2 {[%clk 0:01:04.6]} 25. Ra7
{[%clk 0:02:15.4]} 25... Bf6 {[%clk 0:00:51.5]} 26. Ne4 {[%clk 0:02:12.1]} 26...
Bxe4 {[%clk 0:00:48.9]} 27. Bxe4 {[%clk 0:02:11.3]} 27... Bg5 {[%clk 0:00:48.4]}
28. Qf3 {[%clk 0:02:11.1]} 28... Qf6 {[%clk 0:00:47.2]} 29. Qg4 {[%clk
0:02:07.4]} 29... Rfe8 {[%clk 0:00:43]} 30. Bd5 {[%clk 0:02:04.3]} 30... Re7
{[%clk 0:00:41.9]} 31. Rxe7 {[%clk 0:02:02.1]} 31... Qxe7 {[%clk 0:00:42.8]} 32.
f4 {[%clk 0:02:01.4]} 32... b3 {[%clk 0:00:41.4]} 33. fxg5 {[%clk 0:01:59.8]}
33... b2 {[%clk 0:00:40.5]} 34. Be4 {[%clk 0:01:57.1]} 34... Rb4 {[%clk
0:00:39]} 35. Qf5 {[%clk 0:01:56.1]} 35... Qxe4 {[%clk 0:00:36.8]} 36. Qc8+
{[%clk 0:01:52.2]} 36... Kg7 {[%clk 0:00:36.8]} 37. Qh3 {[%clk 0:01:50.7]} 37...
b1=Q {[%clk 0:00:35.3]} 38. Qh6+ {[%clk 0:01:49.2]} 38... Kg8 {[%clk 0:00:35.8]}
0-1

[Event "*** SCC Grand Prix: Titled Tuesday Blitz"]
[Site "Chess.com"]
[Date "2020.09.29"]
[Round "2"]
[White "chessmaGIA"]
[Black "MateusViageiro"]
[Result "0-1"]
[WhiteElo "1618"]
[BlackElo "2354"]
[TimeControl "180+1"]
[EndTime "10:15:23 PDT"]
[Termination "MateusViageiro won by resignation"]

1. d4 {[%clk 0:03:00.9]} 1... Nf6 {[%clk 0:02:59.5]} 2. c4 {[%clk 0:03:00.6]}
2... e6 {[%clk 0:03:00.1]} 3. Nc3 {[%clk 0:03:00]} 3... d5 {[%clk 0:03:00.7]} 4.
cxd5 {[%clk 0:02:56.1]} 4... exd5 {[%clk 0:03:01.6]} 5. Bg5 {[%clk 0:02:56]}
5... c6 {[%clk 0:03:02]} 6. e3 {[%clk 0:02:55.2]} 6... Nbd7 {[%clk 0:03:02.2]}
7. Bd3 {[%clk 0:02:55.4]} 7... h6 {[%clk 0:03:02.5]} 8. Bh4 {[%clk 0:02:54]}
8... Be7 {[%clk 0:03:01.8]} 9. Qc2 {[%clk 0:02:53.7]} 9... O-O {[%clk 0:03:02]}
10. Nge2 {[%clk 0:02:53.3]} 10... Re8 {[%clk 0:03:01.9]} 11. O-O {[%clk
0:02:50.4]} 11... Ne4 {[%clk 0:03:00.5]} 12. Bxe7 {[%clk 0:02:37.1]} 12... Qxe7
{[%clk 0:03:00.7]} 13. Ng3 {[%clk 0:02:35.8]} 13... Ndf6 {[%clk 0:02:57.3]} 14.
Rae1 {[%clk 0:02:29.2]} 14... Nxc3 {[%clk 0:02:54.1]} 15. bxc3 {[%clk
0:02:26.9]} 15... Ng4 {[%clk 0:02:53.8]} 16. Nf5 {[%clk 0:02:10.9]} 16... Bxf5
{[%clk 0:02:41.6]} 17. Bxf5 {[%clk 0:02:04.3]} 17... Nf6 {[%clk 0:02:41.7]} 18.
f3 {[%clk 0:01:59.6]} 18... a5 {[%clk 0:02:41.2]} 19. e4 {[%clk 0:01:59]} 19...
Qc7 {[%clk 0:02:36.8]} 20. Re2 {[%clk 0:01:47.1]} 20... c5 {[%clk 0:02:34.5]}
21. Rfe1 {[%clk 0:01:37.1]} 21... dxe4 {[%clk 0:02:32.3]} 22. fxe4 {[%clk
0:01:35.7]} 22... cxd4 {[%clk 0:02:25.6]} 23. cxd4 {[%clk 0:01:32.7]} 23... Qxc2
{[%clk 0:02:25.4]} 24. Rxc2 {[%clk 0:01:31.9]} 24... g6 {[%clk 0:02:25.4]} 25.
Bh3 {[%clk 0:01:21.6]} 25... Nxe4 {[%clk 0:02:25.3]} 26. Rce2 {[%clk 0:01:16.6]}
26... Nf6 {[%clk 0:02:23]} 27. Kf2 {[%clk 0:01:11.2]} 27... Kf8 {[%clk
0:02:18.6]} 28. Rb1 {[%clk 0:01:05.1]} 28... Rab8 {[%clk 0:02:16.4]} 29. g3
{[%clk 0:00:54.8]} 29... Rxe2+ {[%clk 0:02:14.6]} 30. Kxe2 {[%clk 0:00:49.8]}
30... b5 {[%clk 0:02:15]} 31. Kd3 {[%clk 0:00:33.7]} 31... Nd5 {[%clk
0:02:08.9]} 32. Bg2 {[%clk 0:00:18.5]} 32... Nb4+ {[%clk 0:02:06.8]} 33. Ke4
{[%clk 0:00:17.2]} 33... Nxa2 {[%clk 0:02:05.7]} 34. Bf1 {[%clk 0:00:17.2]}
34... Nc3+ {[%clk 0:02:05.8]} 0-1

[Event "*** SCC Grand Prix: Titled Tuesday Blitz"]
[Site "Chess.com"]
[Date "2020.09.29"]
[Round "2"]
[White "eightbyeightchess"]
[Black "Zarinur"]
[Result "1-0"]
[WhiteElo "2409"]
[BlackElo "2178"]
[TimeControl "180+1"]
[EndTime "10:15:25 PDT"]
[Termination "eightbyeightchess won by checkmate"]

1. e4 {[%clk 0:03:00.9]} 1... e5 {[%clk 0:02:59]} 2. Nf3 {[%clk 0:03:00.9]} 2...
Nc6 {[%clk 0:02:58.7]} 3. d4 {[%clk 0:03:01.6]} 3... exd4 {[%clk 0:02:57.7]} 4.
c3 {[%clk 0:03:02.3]} 4... d5 {[%clk 0:02:54.9]} 5. exd5 {[%clk 0:03:02.7]} 5...
Qxd5 {[%clk 0:02:55.8]} 6. cxd4 {[%clk 0:03:02.5]} 6... Bg4 {[%clk 0:02:55.9]}
7. Be2 {[%clk 0:03:00.9]} 7... Bb4+ {[%clk 0:02:56.1]} 8. Nc3 {[%clk 0:03:00.8]}
8... Nf6 {[%clk 0:02:55.9]} 9. O-O {[%clk 0:03:00.5]} 9... Bxc3 {[%clk
0:02:50.6]} 10. bxc3 {[%clk 0:03:01.4]} 10... O-O {[%clk 0:02:48.4]} 11. c4
{[%clk 0:03:01.6]} 11... Qd8 {[%clk 0:02:44.5]} 12. d5 {[%clk 0:03:02]} 12...
Bxf3 {[%clk 0:02:42.3]} 13. Bxf3 {[%clk 0:03:02.9]} 13... Ne5 {[%clk 0:02:42]}
14. Be2 {[%clk 0:03:03.6]} 14... Qd6 {[%clk 0:02:33.1]} 15. Bb2 {[%clk
0:03:01.5]} 15... Nfd7 {[%clk 0:02:32.1]} 16. Qd4 {[%clk 0:02:59.1]} 16... f6
{[%clk 0:02:22.9]} 17. Kh1 {[%clk 0:02:41.7]} 17... Rfe8 {[%clk 0:02:15.8]} 18.
f4 {[%clk 0:02:41.6]} 18... Nf7 {[%clk 0:02:09.4]} 19. Bg4 {[%clk 0:02:40.9]}
19... Nc5 {[%clk 0:01:39.3]} 20. Rae1 {[%clk 0:02:38.2]} 20... Nh6 {[%clk
0:01:30.3]} 21. Bh5 {[%clk 0:02:38.2]} 21... g6 {[%clk 0:01:27.4]} 22. Bf3
{[%clk 0:02:30.6]} 22... Nf5 {[%clk 0:01:25.2]} 23. Qxf6 {[%clk 0:02:28]} 23...
Qxf6 {[%clk 0:01:24.7]} 24. Bxf6 {[%clk 0:02:28.9]} 24... Ne3 {[%clk 0:01:23.9]}
25. Rxe3 {[%clk 0:02:21.5]} 25... Rxe3 {[%clk 0:01:19.4]} 26. Bd4 {[%clk
0:02:22.1]} 26... Ra3 {[%clk 0:01:16.3]} 27. Bxc5 {[%clk 0:02:21.3]} 27... Rxa2
{[%clk 0:01:16.6]} 28. d6 {[%clk 0:02:18.5]} 28... cxd6 {[%clk 0:01:14.7]} 29.
Bxd6 {[%clk 0:02:19.4]} 29... Rc2 {[%clk 0:01:04.1]} 30. Bxb7 {[%clk 0:02:16.4]}
30... Rd8 {[%clk 0:01:02.1]} 31. c5 {[%clk 0:02:16]} 31... a5 {[%clk 0:00:59.7]}
32. h4 {[%clk 0:02:15.7]} 32... a4 {[%clk 0:00:53.1]} 33. f5 {[%clk 0:02:15.7]}
33... a3 {[%clk 0:00:51.7]} 34. f6 {[%clk 0:02:15.1]} 34... Rd7 {[%clk 0:00:20]}
35. Bd5+ {[%clk 0:02:08.4]} 35... Kh8 {[%clk 0:00:17.3]} 36. Be5 {[%clk
0:02:08.4]} 36... Rf7 {[%clk 0:00:04.7]} 37. Bxf7 {[%clk 0:02:06.8]} 37... a2
{[%clk 0:00:03.7]} 38. Bxa2 {[%clk 0:02:03.8]} 38... Rxa2 {[%clk 0:00:03.3]} 39.
f7# {[%clk 0:02:03.2]} 1-0

[Event "*** SCC Grand Prix: Titled Tuesday Blitz"]
[Site "Chess.com"]
[Date "2020.09.29"]
[Round "2"]
[White "Orest_Vovk"]
[Black "WarEmblem"]
[Result "1-0"]
[WhiteElo "2398"]
[BlackElo "2107"]
[TimeControl "180+1"]
[EndTime "10:15:27 PDT"]
[Termination "Orest_Vovk won on time"]

1. h4 {[%clk 0:03:00.9]} 1... e5 {[%clk 0:02:56.9]} 2. h5 {[%clk 0:03:00.7]}
2... h6 {[%clk 0:02:54.5]} 3. Nc3 {[%clk 0:02:58.3]} 3... Nc6 {[%clk 0:02:52.9]}
4. Nf3 {[%clk 0:02:57.4]} 4... d5 {[%clk 0:02:50.7]} 5. e4 {[%clk 0:02:55.4]}
5... d4 {[%clk 0:02:47.1]} 6. Ne2 {[%clk 0:02:54.4]} 6... Nf6 {[%clk 0:02:23.3]}
7. Ng3 {[%clk 0:02:54.2]} 7... Bg4 {[%clk 0:02:15.6]} 8. Bc4 {[%clk 0:02:46.5]}
8... Qd7 {[%clk 0:02:09.2]} 9. d3 {[%clk 0:02:36.5]} 9... Bd6 {[%clk 0:01:42.6]}
10. Bd2 {[%clk 0:02:27.5]} 10... a6 {[%clk 0:01:32.8]} 11. a3 {[%clk 0:02:25.8]}
11... Ne7 {[%clk 0:01:21.9]} 12. Qb1 {[%clk 0:02:17.9]} 12... Bxf3 {[%clk
0:01:09.9]} 13. gxf3 {[%clk 0:02:17.3]} 13... b5 {[%clk 0:01:05.7]} 14. Bb3
{[%clk 0:02:16.5]} 14... c5 {[%clk 0:01:05.2]} 15. Qa2 {[%clk 0:02:15.5]} 15...
O-O {[%clk 0:00:59.6]} 16. Rg1 {[%clk 0:02:10.1]} 16... Kh7 {[%clk 0:00:56.9]}
17. Bxf7 {[%clk 0:02:07.6]} 17... c4 {[%clk 0:00:53.4]} 18. Bg6+ {[%clk
0:02:03]} 18... Kh8 {[%clk 0:00:30.7]} 19. Nf5 {[%clk 0:01:59.1]} 19... Nxf5
{[%clk 0:00:27.4]} 20. Bxf5 {[%clk 0:01:57.3]} 20... Qc6 {[%clk 0:00:26.4]} 21.
Rg6 {[%clk 0:01:51.5]} 21... c3 {[%clk 0:00:20.1]} 22. bxc3 {[%clk 0:01:49.9]}
22... dxc3 {[%clk 0:00:19.9]} 23. Bxh6 {[%clk 0:01:49.8]} 23... gxh6 {[%clk
0:00:19.2]} 24. Rxh6+ {[%clk 0:01:49.8]} 24... Kg7 {[%clk 0:00:16.2]} 25. Rg6+
{[%clk 0:01:49.3]} 25... Kh8 {[%clk 0:00:15.5]} 26. Ke2 {[%clk 0:01:44.5]} 26...
Nh7 {[%clk 0:00:13.5]} 27. Rag1 {[%clk 0:01:42.1]} 27... Rxf5 {[%clk 0:00:12]}
28. exf5 {[%clk 0:01:40.8]} 28... Rf8 {[%clk 0:00:12.5]} 29. Qg8+ {[%clk
0:01:38.1]} 1-0

[Event "*** SCC Grand Prix: Titled Tuesday Blitz"]
[Site "Chess.com"]
[Date "2020.09.29"]
[Round "2"]
[White "Piotrek1979"]
[Black "Sacbutt"]
[Result "1-0"]
[WhiteElo "2452"]
[BlackElo "2280"]
[TimeControl "180+1"]
[EndTime "10:15:32 PDT"]
[Termination "Piotrek1979 won by resignation"]

1. Nf3 {[%clk 0:02:59.5]} 1... e6 {[%clk 0:02:58.5]} 2. b3 {[%clk 0:02:48.1]}
2... b6 {[%clk 0:02:57.6]} 3. Bb2 {[%clk 0:02:48.6]} 3... Bb7 {[%clk 0:02:58.5]}
4. c4 {[%clk 0:02:48]} 4... d5 {[%clk 0:02:57.3]} 5. e3 {[%clk 0:02:46.2]} 5...
Nf6 {[%clk 0:02:57.3]} 6. Be2 {[%clk 0:02:46]} 6... Be7 {[%clk 0:02:57.7]} 7.
O-O {[%clk 0:02:45.9]} 7... O-O {[%clk 0:02:58.2]} 8. d3 {[%clk 0:02:44.7]} 8...
c5 {[%clk 0:02:55.7]} 9. Nbd2 {[%clk 0:02:44.4]} 9... Nc6 {[%clk 0:02:55.8]} 10.
a3 {[%clk 0:02:43.2]} 10... Qc7 {[%clk 0:02:55.7]} 11. Rc1 {[%clk 0:02:41.7]}
11... Rad8 {[%clk 0:02:55.6]} 12. Rc2 {[%clk 0:02:41.1]} 12... h6 {[%clk
0:02:50.9]} 13. Qa1 {[%clk 0:02:39.6]} 13... Ne8 {[%clk 0:02:48.6]} 14. cxd5
{[%clk 0:02:29.7]} 14... exd5 {[%clk 0:02:49.5]} 15. Rfc1 {[%clk 0:02:28.6]}
15... Bf6 {[%clk 0:02:45.6]} 16. b4 {[%clk 0:02:26.5]} 16... cxb4 {[%clk
0:02:41.7]} 17. axb4 {[%clk 0:02:25.1]} 17... Bxb2 {[%clk 0:02:40.4]} 18. Qxb2
{[%clk 0:02:24.8]} 18... Qb8 {[%clk 0:02:35.3]} 19. Rxc6 {[%clk 0:02:22.7]}
19... Bxc6 {[%clk 0:02:35.2]} 20. Rxc6 {[%clk 0:02:22.9]} 20... Nf6 {[%clk
0:02:34.9]} 21. b5 {[%clk 0:02:19.1]} 21... Rfe8 {[%clk 0:02:33.2]} 22. d4
{[%clk 0:02:16.4]} 22... Re6 {[%clk 0:02:32.6]} 23. Rxe6 {[%clk 0:02:12.8]}
23... fxe6 {[%clk 0:02:33.5]} 24. Ne5 {[%clk 0:02:12.6]} 24... Rc8 {[%clk
0:02:33]} 25. Nc6 {[%clk 0:02:04.1]} 25... Qc7 {[%clk 0:02:32.3]} 26. Nf3 {[%clk
0:01:54.5]} 26... a6 {[%clk 0:02:30.3]} 27. Nfe5 {[%clk 0:01:53]} 27... axb5
{[%clk 0:02:30.3]} 28. Qxb5 {[%clk 0:01:46.9]} 28... Ne4 {[%clk 0:02:24.3]} 29.
Bg4 {[%clk 0:01:42.7]} 29... Re8 {[%clk 0:02:18.4]} 30. Bh5 {[%clk 0:01:20.4]}
30... Rf8 {[%clk 0:02:13.7]} 31. f3 {[%clk 0:01:19.2]} 31... Nd6 {[%clk
0:02:09.4]} 32. Qb4 {[%clk 0:01:17.1]} 32... Ra8 {[%clk 0:02:03.6]} 33. h3
{[%clk 0:01:14.7]} 33... Ra1+ {[%clk 0:02:00.8]} 34. Kh2 {[%clk 0:01:14.1]}
34... Nc4 {[%clk 0:02:01.3]} 35. Ne7+ {[%clk 0:01:10.6]} 35... Kh7 {[%clk
0:01:57.9]} 36. Ng6 {[%clk 0:01:01.7]} 36... Ra8 {[%clk 0:01:47.8]} 37. f4
{[%clk 0:00:58]} 37... Nd6 {[%clk 0:01:40.2]} 38. Bg4 {[%clk 0:00:51.4]} 38...
Re8 {[%clk 0:01:34.8]} 39. Bxe6 {[%clk 0:00:45.3]} 1-0

[Event "*** SCC Grand Prix: Titled Tuesday Blitz"]
[Site "Chess.com"]
[Date "2020.09.29"]
[Round "2"]
[White "kreonx"]
[Black "annacramling"]
[Result "0-1"]
[WhiteElo "2362"]
[BlackElo "2030"]
[TimeControl "180+1"]
[EndTime "10:15:32 PDT"]
[Termination "annacramling won by checkmate"]

1. e4 {[%clk 0:03:00.9]} 1... c5 {[%clk 0:02:55.8]} 2. c4 {[%clk 0:03:00]} 2...
Nc6 {[%clk 0:02:53.5]} 3. Nc3 {[%clk 0:03:00.5]} 3... g6 {[%clk 0:02:47.8]} 4.
g3 {[%clk 0:03:00.8]} 4... Bg7 {[%clk 0:02:47.6]} 5. Bg2 {[%clk 0:03:01.4]} 5...
d6 {[%clk 0:02:46.9]} 6. Nge2 {[%clk 0:03:01.4]} 6... e6 {[%clk 0:02:46.8]} 7.
Rb1 {[%clk 0:03:01.5]} 7... Nge7 {[%clk 0:02:46.3]} 8. a3 {[%clk 0:02:58]} 8...
a5 {[%clk 0:02:45.6]} 9. Nb5 {[%clk 0:02:56.5]} 9... O-O {[%clk 0:02:44.3]} 10.
d4 {[%clk 0:02:56.1]} 10... cxd4 {[%clk 0:02:42.7]} 11. Nexd4 {[%clk 0:02:52.1]}
11... Ne5 {[%clk 0:02:35.2]} 12. Qe2 {[%clk 0:02:41.7]} 12... Qb6 {[%clk
0:02:32]} 13. f4 {[%clk 0:02:39.1]} 13... Ng4 {[%clk 0:02:17.2]} 14. Qxg4 {[%clk
0:02:14.8]} 14... Bxd4 {[%clk 0:02:14]} 15. Nxd4 {[%clk 0:02:15.7]} 15... Qxd4
{[%clk 0:02:13.9]} 16. Qe2 {[%clk 0:02:14.6]} 16... d5 {[%clk 0:01:42.6]} 17.
cxd5 {[%clk 0:02:04.3]} 17... exd5 {[%clk 0:01:42.5]} 18. Be3 {[%clk 0:02:03.4]}
18... Qa4 {[%clk 0:01:16.8]} 19. e5 {[%clk 0:01:10.2]} 19... d4 {[%clk
0:01:05.3]} 20. Bf2 {[%clk 0:01:08.2]} 20... Bf5 {[%clk 0:01:03.1]} 21. Rd1
{[%clk 0:01:05.6]} 21... d3 {[%clk 0:00:58.1]} 22. Qe3 {[%clk 0:01:05]} 22...
Rfd8 {[%clk 0:00:37.3]} 23. g4 {[%clk 0:01:00.5]} 23... Bxg4 {[%clk 0:00:37]}
24. Rxd3 {[%clk 0:01:00.1]} 24... Qd1+ {[%clk 0:00:31.8]} 25. Rxd1 {[%clk
0:00:58]} 25... Rxd1# {[%clk 0:00:31]} 0-1

[Event "*** SCC Grand Prix: Titled Tuesday Blitz"]
[Site "Chess.com"]
[Date "2020.09.29"]
[Round "2"]
[White "mamey78"]
[Black "TimKett"]
[Result "1-0"]
[WhiteElo "2406"]
[BlackElo "2155"]
[TimeControl "180+1"]
[EndTime "10:15:35 PDT"]
[Termination "mamey78 won by resignation"]

1. e4 {[%clk 0:02:59]} 1... e5 {[%clk 0:02:59.6]} 2. Nf3 {[%clk 0:02:58.7]} 2...
Nc6 {[%clk 0:02:59.6]} 3. Bb5 {[%clk 0:02:58.2]} 3... a6 {[%clk 0:02:58.8]} 4.
Ba4 {[%clk 0:02:58.4]} 4... Nf6 {[%clk 0:02:57.2]} 5. O-O {[%clk 0:02:58]} 5...
Be7 {[%clk 0:02:56.4]} 6. Re1 {[%clk 0:02:58.2]} 6... b5 {[%clk 0:02:56.2]} 7.
Bb3 {[%clk 0:02:58.6]} 7... d6 {[%clk 0:02:56.2]} 8. c3 {[%clk 0:02:58.9]} 8...
O-O {[%clk 0:02:55.4]} 9. h3 {[%clk 0:02:59.3]} 9... Nb8 {[%clk 0:02:54.9]} 10.
d4 {[%clk 0:02:59.2]} 10... Nbd7 {[%clk 0:02:54.5]} 11. Nbd2 {[%clk 0:02:59.6]}
11... Bb7 {[%clk 0:02:54.2]} 12. Bc2 {[%clk 0:02:59.9]} 12... Re8 {[%clk
0:02:52.6]} 13. Nf1 {[%clk 0:03:00.1]} 13... Bf8 {[%clk 0:02:52.5]} 14. Ng3
{[%clk 0:03:00.2]} 14... g6 {[%clk 0:02:52.6]} 15. a4 {[%clk 0:03:00.4]} 15...
c5 {[%clk 0:02:52.1]} 16. Bg5 {[%clk 0:02:59.8]} 16... h6 {[%clk 0:02:43.4]} 17.
Bd2 {[%clk 0:02:59.3]} 17... cxd4 {[%clk 0:02:23.4]} 18. cxd4 {[%clk 0:02:58.3]}
18... exd4 {[%clk 0:02:23.2]} 19. Nxd4 {[%clk 0:02:54]} 19... Nc5 {[%clk
0:02:17.1]} 20. axb5 {[%clk 0:02:46]} 20... axb5 {[%clk 0:02:13]} 21. Rxa8
{[%clk 0:02:44.7]} 21... Qxa8 {[%clk 0:02:12.6]} 22. Nxb5 {[%clk 0:02:41.2]}
22... Qb8 {[%clk 0:01:36.9]} 23. Bc3 {[%clk 0:02:21.4]} 23... Nfxe4 {[%clk
0:01:32.5]} 24. Nxe4 {[%clk 0:02:20.4]} 24... Nxe4 {[%clk 0:01:23.6]} 25. Bxe4
{[%clk 0:02:16.5]} 25... Rxe4 {[%clk 0:01:15.2]} 26. Rxe4 {[%clk 0:02:13.8]}
26... Bxe4 {[%clk 0:01:15]} 27. Qd4 {[%clk 0:02:14.2]} 27... f5 {[%clk
0:01:08.3]} 28. Qh8+ {[%clk 0:02:09]} 28... Kf7 {[%clk 0:01:07.6]} 29. Qf6+
{[%clk 0:02:07.5]} 29... Ke8 {[%clk 0:01:06.3]} 30. Qxg6+ {[%clk 0:02:05.9]}
30... Kd7 {[%clk 0:01:06.9]} 31. Qf7+ {[%clk 0:01:59.6]} 31... Be7 {[%clk
0:00:58.1]} 32. Nd4 {[%clk 0:01:57.6]} 32... Qf8 {[%clk 0:00:48]} 33. Qe6+
{[%clk 0:01:51.8]} 33... Ke8 {[%clk 0:00:48.1]} 34. Nb5 {[%clk 0:01:37.8]} 1-0

[Event "*** SCC Grand Prix: Titled Tuesday Blitz"]
[Site "Chess.com"]
[Date "2020.09.29"]
[Round "2"]
[White "jamalm2"]
[Black "Rap_woyska"]
[Result "0-1"]
[WhiteElo "1715"]
[BlackElo "2358"]
[TimeControl "180+1"]
[EndTime "10:15:39 PDT"]
[Termination "Rap_woyska won on time"]

1. d4 {[%clk 0:02:01.8]} 1... Nf6 {[%clk 0:02:50.4]} 2. c4 {[%clk 0:01:59.2]}
2... g6 {[%clk 0:02:51.3]} 3. Nf3 {[%clk 0:01:58.5]} 3... Bg7 {[%clk 0:02:50.8]}
4. Nc3 {[%clk 0:01:58.5]} 4... d5 {[%clk 0:02:51.1]} 5. cxd5 {[%clk 0:01:56.6]}
5... Nxd5 {[%clk 0:02:52]} 6. e4 {[%clk 0:01:50.4]} 6... Nxc3 {[%clk 0:02:52.4]}
7. bxc3 {[%clk 0:01:50.4]} 7... c5 {[%clk 0:02:52.7]} 8. Be3 {[%clk 0:01:47.7]}
8... O-O {[%clk 0:02:50.4]} 9. Bc4 {[%clk 0:01:44.4]} 9... Nc6 {[%clk
0:02:07.2]} 10. Rb1 {[%clk 0:01:35.6]} 10... Bg4 {[%clk 0:02:04]} 11. Rxb7
{[%clk 0:01:27.8]} 11... Na5 {[%clk 0:02:02.7]} 12. Bd5 {[%clk 0:01:17.5]} 12...
e6 {[%clk 0:02:02.1]} 13. Rxf7 {[%clk 0:00:38]} 13... Rxf7 {[%clk 0:01:55.7]}
14. Bxa8 {[%clk 0:00:34.6]} 14... Qxa8 {[%clk 0:01:56.6]} 15. e5 {[%clk
0:00:32.1]} 15... Nc4 {[%clk 0:01:46.2]} 16. O-O {[%clk 0:00:18.7]} 16... Qe4
{[%clk 0:01:30.3]} 17. Ng5 {[%clk 0:00:13.1]} 17... Nxe3 {[%clk 0:01:14]} 18.
Nxe4 {[%clk 0:00:01.6]} 18... Nxd1 {[%clk 0:01:13.7]} 0-1